bitfinex-derivatives/quotes_BNBF0:USTF0_20250529
["timestamp","ask_amount","ask_price","bid_price","bid_amount"]
[1748482825598,0.2899265,689.83,688.13,1.04102014]
[1748482825897,0.2899265,689.83,688.14,1.04102014]
[1748482826097,0.2899265,689.83,688.15,1.04102014]
[1748482826293,0.2899265,689.83,688.11,0.686]
[1748482827499,0.2899265,689.83,688.12,1.04117921]
[1748482827797,0.2899265,689.83,688.11,0.686]
[1748482828195,0.2899265,689.83,688.12,1.04118347]
[1748482828398,0.2899265,689.83,688.11,0.686]
[1748482828598,0.2899265,689.83,688.12,1.04118354]
[1748482828898,0.2899265,689.83,688.11,0.686]
[1748482829199,0.2899265,689.83,688.12,1.04118899]
[1748482829500,0.2899265,689.83,688.13,1.04118899]
[1748482829801,0.2899265,689.83,688.11,0.686]
[1748482830396,0.2899265,689.83,688.12,1.04116008]
[1748482830599,0.2899265,689.83,688.13,1.04116008]
[1748482830798,0.2899265,689.83,687.16,0.46113069]
[1748482831002,0.2899265,689.83,687.56,1.04117501]
[1748482831199,0.2899265,689.83,687.57,1.04117513]
[1748482831403,0.2899265,689.83,687.16,0.46113069]
[1748482831602,0.2899265,689.83,687.56,1.04115313]
[1748482831804,0.2899265,689.83,687.16,0.46113069]
[1748482833406,0.2899265,689.83,687.56,1.0411249]
[1748482833607,0.2899265,689.83,687.56,0.599]
[1748482833809,0.25216752,689.27,687.57,0.29087947]
[1748482834007,0.25216752,689.27,687.58,1.04116117]
[1748482834203,0.25216752,689.27,687.59,1.33203218]
[1748482834407,0.29017047,689.25,687.6,1.33202795]
[1748482834607,0.29017047,689.25,687.61,1.33202372]
[1748482834908,0.29017047,689.25,687.62,1.33201949]
[1748482835108,0.29017047,689.25,687.63,1.33159381]
[1748482835309,0.29017047,689.25,687.64,1.0407889]
[1748482835608,0.29017047,689.25,687.63,0.29085409]
[1748482836307,0.29017047,689.25,687.64,1.04078663]
[1748482836502,0.29017047,689.25,687.63,0.29085409]
[1748482836910,0.29017047,689.25,688.38,0.46190675]
[1748482839309,0.29017047,689.25,688.39,0.46190675]
[1748482840119,0.29017047,689.25,688.4,1.0697917]
[1748482840313,0.29017047,689.25,688.39,0.46190675]
[1748482841517,0.29017047,689.25,688.4,1.04907621]
[1748482841717,0.29017047,689.25,688.41,1.04907621]
[1748482841921,0.29017047,689.25,688.42,1.04907661]
[1748482842121,0.29017047,689.25,688.39,0.46190675]
[1748482842519,0.29017047,689.25,688.4,1.04934154]
[1748482842820,0.29017047,689.25,688.41,1.05037045]
[1748482843120,0.29017047,689.25,688.42,1.05037045]
[1748482843315,0.29017047,689.25,688.39,0.46190675]
[1748482843615,0.29017047,689.25,688.4,1.05062541]
[1748482843820,0.29017047,689.25,688.39,0.46190675]
[1748482844020,0.29017047,689.25,688.4,1.05062644]
[1748482844221,0.29017047,689.25,688.39,0.46190675]
[1748482844616,0.29017047,689.25,688.4,1.05062643]
[1748482844821,0.29017047,689.25,688.39,0.46190675]
[1748482845024,0.29017047,689.25,688.4,1.05095889]
[1748482845318,0.29017047,689.25,688.39,0.46190675]
[1748482845823,0.29017047,689.25,688.4,1.05106183]
[1748482846122,0.29017047,689.25,688.41,1.05157945]
[1748482846319,0.29017047,689.25,688.42,1.05157945]
[1748482846518,0.29017047,689.25,688.43,1.0515798]
[1748482846721,0.29017047,689.25,688.44,1.0515798]
[1748482847018,0.29017047,689.25,688.45,1.0524156]
[1748482847223,0.29017047,689.25,688.39,0.46190675]
[1748482848025,0.29017047,689.25,688.4,1.05329978]
[1748482848318,0.29017047,689.25,688.39,0.46190675]
[1748482848519,0.29017047,689.25,688.4,1.05330008]
[1748482848821,0.29017047,689.25,688.41,1.05327394]
[1748482849017,0.29017047,689.25,688.42,1.05327394]
[1748482849322,0.29017047,689.25,688.43,1.05327394]
[1748482849519,0.29017047,689.25,688.44,1.05327394]
[1748482849818,0.29017047,689.25,688.45,1.05329247]
[1748482850019,0.29017047,689.25,688.46,1.05330876]
[1748482850222,0.29017047,689.25,688.47,1.05330875]
[1748482850424,0.29017047,689.25,688.48,1.05330875]
[1748482850619,0.29017047,689.25,688.49,1.05330875]
[1748482850818,0.29017047,689.25,688.5,1.05330875]
[1748482851023,0.29017047,689.25,688.51,1.05330875]
[1748482851221,0.29017047,689.25,688.52,1.05330875]
[1748482851419,0.29017047,689.25,688.53,1.05330875]
[1748482851720,0.29017047,689.25,687.98,0.46190675]
[1748482852020,0.29017047,689.25,687.97,0.46190675]
[1748482852719,0.29017047,689.25,687.98,0.46190675]
[1748482853119,0.29017047,689.25,688.01,0.46190675]
[1748482853627,0.29017047,689.25,688.02,1.05331347]
[1748482853827,0.29017047,689.25,688.03,1.05331329]
[1748482854027,0.29017047,689.25,688.01,0.46190675]
[1748482854221,0.29017047,689.25,688.02,1.05331233]
[1748482854423,0.29017047,689.25,688.01,0.46190675]
[1748482855228,0.29017047,689.25,688.02,1.62349272]
[1748482855528,0.29017047,689.25,688.01,0.46190675]
[1748482855721,0.29017047,689.25,688.02,1.62349178]
[1748482856022,0.29017047,689.25,688.01,0.46190675]
[1748482856321,0.29017047,689.25,688.02,0.57018082]
[1748482856627,0.29017047,689.25,688.03,1.05331219]
[1748482856922,0.29017047,689.25,688.04,1.62358188]
[1748482857126,0.29017047,689.25,688.01,0.46190675]
[1748482857626,0.29017047,689.25,688.02,0.57021074]
[1748482857822,0.29017047,689.25,688.01,0.46190675]
[1748482858520,0.29017047,689.25,688.02,1.62358288]
[1748482858725,0.29017047,689.25,688.03,1.62358403]
[1748482858925,0.29017047,689.25,688.04,0.57021194]
[1748482859123,0.29017047,689.25,688.05,0.57021145]
[1748482859326,0.29017047,689.25,688.01,0.46190675]
[1748482859526,0.29017047,689.25,688.02,1.05336975]
[1748482859727,0.29017047,689.25,688.01,0.46190675]
[1748482859926,0.29017047,689.25,688.02,1.62358223]
[1748482860128,0.29017047,689.25,688.03,1.05337078]
[1748482860325,0.29017047,689.25,688.01,0.46190675]
[1748482860829,0.29017047,689.25,688.02,0.57021145]
[1748482861027,0.29017047,689.25,688.03,0.57025999]
[1748482861226,0.29017047,689.25,688.04,1.05345941]
[1748482861429,0.29017047,689.25,688.01,0.46190675]
[1748482867729,0.29017047,689.25,687.71,0.25266826]
[1748482867730,0.29017047,689.25,688.16,0.46190675]
[1748482869636,0.29017047,689.25,687.71,0.25266826]
[1748482872337,0.29017047,689.25,687.72,0.29081602]
[1748482876235,0.29017047,689.25,687.73,0.5]
[1748482876434,0.29017047,689.25,687.74,0.29080757]
[1748482880738,0.29017047,689.25,687.76,0.46151403]
[1748482881339,0.29017047,689.25,687.75,0.46151403]
[1748482881544,0.29017047,689.25,687.75,0.75231737]
[1748482881948,0.29017047,689.25,687.76,0.46151403]
[1748482882844,0.29017047,689.25,688.19,0.46151403]
[1748482883648,0.29017047,689.25,687.94,0.46151403]
[1748482884243,0.29017047,689.25,687.93,0.46151403]
[1748482884750,0.29017047,689.25,687.94,0.46151403]
[1748482887453,0.29017047,689.25,687.95,0.46151403]
[1748482896156,0.29017047,689.25,687.96,0.659]
[1748482898262,0.29017047,689.25,688.34,0.46151403]
[1748482899262,0.29017047,689.25,688.35,0.46151403]
[1748482910473,0.29017047,689.25,688.2,0.46151403]
[1748482910869,0.29017047,689.25,687.96,0.659]
[1748482910870,0.29017047,689.25,688.19,0.46151403]
[1748482911273,0.29017047,689.25,687.96,0.659]
[1748482911274,0.29017047,689.25,688.22,0.46151403]
[1748482911472,0.29017047,689.25,688.23,0.46151403]
[1748482912474,0.29017047,689.25,688.17,0.46151403]
[1748482913476,0.29017047,689.25,688.18,0.57079487]
[1748482913677,0.29017047,689.25,688.19,1.62144624]
[1748482913876,0.29017047,689.25,688.2,1.62148954]
[1748482914070,0.29017047,689.25,688.21,1.62148943]
[1748482914371,0.29017047,689.25,688.22,1.62148943]
[1748482914575,0.29017047,689.25,688.23,1.62148904]
[1748482914772,0.29017047,689.25,688.24,1.62148904]
[1748482914973,0.29017047,689.25,688.25,1.62150813]
[1748482915172,0.29017047,689.25,688.26,1.621508]
[1748482915477,0.29017047,689.25,688.27,1.621508]
[1748482915673,0.29017047,689.25,688.28,1.621508]
[1748482915972,0.29017047,689.25,688.29,1.62152742]
[1748482916174,0.29017047,689.25,688.3,1.62152693]
[1748482916376,0.29017047,689.25,688.31,1.62152693]
[1748482916573,0.29017047,689.25,688.32,1.62152693]
[1748482916874,0.29017047,689.25,688.33,1.62152693]
[1748482917076,0.29017047,689.25,688.34,1.62152693]
[1748482917274,0.29017047,689.25,688.35,1.62152693]
[1748482917473,0.29017047,689.25,688.36,1.62100188]
[1748482917678,0.29017047,689.25,688.39,0.46151403]
[1748482917979,0.29017047,689.25,688.4,1.62100188]
[1748482918177,0.29017047,689.25,688.41,1.62100188]
[1748482918378,0.29017047,689.25,688.42,1.62100188]
[1748482918577,0.29017047,689.25,688.43,1.62100188]
[1748482918781,0.29017047,689.25,688.44,1.62100188]
[1748482918980,0.29017047,689.25,688.45,1.62100188]
[1748482919177,0.29017047,689.25,688.46,1.62101804]
[1748482919381,0.29017047,689.25,688.47,1.62087358]
[1748482919680,0.29017047,689.25,688.48,1.62089096]
[1748482919881,0.29017047,689.25,688.49,1.62089096]
[1748482920077,0.29017047,689.25,688.39,0.46151403]
[1748482920078,0.29017047,689.25,688.5,1.62088993]
[1748482920279,0.29017047,689.25,688.51,1.62088993]
[1748482920477,0.29017047,689.25,688.39,0.46151403]
[1748482920478,0.29017047,689.25,688.52,1.62088993]
[1748482920681,0.29017047,689.25,688.53,1.62088993]
[1748482920882,0.29017047,689.25,688.54,1.62088993]
[1748482921082,0.29017047,689.25,688.55,1.62088993]
[1748482921382,0.29017047,689.25,688.56,1.62090568]
[1748482921681,0.29017047,689.25,688.57,1.62090568]
[1748482921882,0.29017047,689.25,688.58,1.62090568]
[1748482922083,0.29017047,689.25,688.54,0.46151403]
[1748482922282,0.29017047,689.25,688.55,1.62093477]
[1748482922482,0.29017047,689.25,688.56,1.62093477]
[1748482922783,0.29017047,689.25,688.57,1.62093477]
[1748482923078,0.29017047,689.25,688.58,1.62093477]
[1748482923282,0.29017047,689.25,688.59,1.62093477]
[1748482923483,0.29017047,689.25,688.6,1.62093477]
[1748482923685,0.29017047,689.25,688.61,1.62093477]
[1748482923880,0.29017047,689.25,688.62,1.6207411]
[1748482924087,0.29017047,689.25,688.63,1.6207411]
[1748482924286,0.29017047,689.25,688.64,1.6207411]
[1748482924581,0.29017047,689.25,688.65,1.6207411]
[1748482924781,0.29017047,689.25,687.96,0.659]
[1748482925085,0.29017047,689.25,687.97,1.62072298]
[1748482925285,0.29017047,689.25,687.98,1.62070825]
[1748482925581,0.29017047,689.25,687.99,1.62070825]
[1748482925786,0.29017047,689.25,688.0,1.62070825]
[1748482925987,0.29017047,689.25,688.01,0.57080999]
[1748482926187,0.29017047,689.25,688.02,1.62046874]
[1748482926388,0.29017047,689.25,688.03,1.62046874]
[1748482926583,0.29017047,689.25,688.04,1.62046874]
[1748482926787,0.29017047,689.25,688.05,1.62046874]
[1748482926988,0.29017047,689.25,688.06,1.61993538]
[1748482927182,0.29017047,689.25,688.07,1.61993538]
[1748482927382,0.29017047,689.25,688.08,1.61994232]
[1748482927585,0.29017047,689.25,688.09,1.61982896]
[1748482927784,0.29017047,689.25,688.1,0.57070744]
[1748482928085,0.29017047,689.25,688.11,1.62022033]
[1748482928285,0.29017047,689.25,688.12,1.62022033]
[1748482928485,0.29017047,689.25,688.13,1.62022033]
[1748482928790,0.29017047,689.25,688.14,1.62025621]
[1748482929085,0.29017047,689.25,688.15,1.62025552]
[1748482929388,0.29017047,689.25,688.16,1.04959098]
[1748482929689,0.29017047,689.25,688.17,1.62026395]
[1748482929985,0.29017047,689.25,687.96,0.659]
[1748482930189,0.29017047,689.25,688.44,0.46175313]
[1748482930386,0.29017047,689.25,688.45,1.62089744]
[1748482930588,0.29017047,689.25,688.46,1.62089744]
[1748482930791,0.29017047,689.25,688.47,1.62089744]
[1748482930989,0.29017047,689.25,688.48,0.57089158]
[1748482931186,0.29017047,689.25,688.49,0.57092133]
[1748482931485,0.29017047,689.25,688.5,0.57092133]
[1748482931789,0.29017047,689.25,688.51,0.57093464]
[1748482931989,0.29017047,689.25,688.52,0.57093464]
[1748482932288,0.29017047,689.25,688.53,0.57093464]
[1748482932486,0.29017047,689.25,688.54,0.57093464]
[1748482932685,0.29017047,689.25,688.55,0.57093464]
[1748482932892,0.29017047,689.25,688.44,0.46175313]
[1748482933088,0.29017047,689.25,688.45,0.57095122]
[1748482933287,0.29017047,689.25,688.46,1.6155475]
[1748482933490,0.29017047,689.25,688.47,1.04461854]
[1748482933691,0.29017047,689.25,688.48,1.61558197]
[1748482933891,0.29017047,689.25,688.49,1.61558197]
[1748482934091,0.29017047,689.25,688.5,1.61558197]
[1748482934292,0.29017047,689.25,688.51,1.61559381]
[1748482934492,0.29017047,689.25,688.52,1.61575455]
[1748482934791,0.29017047,689.25,688.53,1.61575455]
[1748482934992,0.29017047,689.25,688.54,1.61575455]
[1748482935188,0.29017047,689.25,688.55,0.57095965]
[1748482935391,0.29017047,689.25,688.56,1.61571423]
[1748482935694,0.29017047,689.25,688.57,1.61571423]
[1748482935893,0.29017047,689.25,688.58,1.04475458]
[1748482936195,0.29017047,689.25,688.59,1.61572869]
[1748482936387,0.29017047,689.25,688.55,0.46175313]
[1748482936589,0.29017047,689.25,688.56,1.61416211]
[1748482936887,0.29017047,689.25,688.57,1.61415864]
[1748482937090,0.29017047,689.25,688.58,1.61415864]
[1748482937395,0.29017047,689.25,688.59,1.61415864]
[1748482937690,0.29017047,689.25,688.6,1.61415864]
[1748482937994,0.29017047,689.25,688.61,1.61414928]
[1748482938192,0.29017047,689.25,688.62,1.61414928]
[1748482938388,0.29017047,689.25,688.56,0.46175313]
[1748482938591,0.29017047,689.25,688.57,0.57094726]
[1748482938789,0.29017047,689.25,688.58,1.61314565]
[1748482938993,0.29017047,689.25,688.59,1.61338717]
[1748482939296,0.29017047,689.25,688.6,1.61336457]
[1748482939496,0.29017047,689.25,688.61,1.61336457]
[1748482939794,0.29017047,689.25,688.62,1.61336457]
[1748482940094,0.29017047,689.25,688.63,1.61485105]
[1748482940295,0.29017047,689.25,688.64,0.57114458]
[1748482940594,0.29017047,689.25,688.65,0.57114458]
[1748482940793,0.29017047,689.25,688.65,0.455]
[1748482940993,0.29017047,689.25,688.66,0.57114462]
[1748482941190,0.29017047,689.25,688.67,1.63863729]
[1748482941390,0.29017047,689.25,688.68,1.63863729]
[1748482941591,0.29017047,689.25,688.65,0.455]
[1748482941794,0.29017047,689.25,688.66,1.63803869]
[1748482942094,0.29017047,689.25,688.67,1.63803869]
[1748482942293,0.29017047,689.25,688.68,1.63803869]
[1748482942495,0.29017047,689.25,688.69,1.63803869]
[1748482942696,0.29017047,689.25,688.7,1.63801342]
[1748482942890,0.29017047,689.25,688.71,1.06688492]
[1748482943094,0.29017047,689.25,688.72,1.63800165]
[1748482943294,0.29017047,689.25,688.73,1.63800165]
[1748482943495,0.29017047,689.25,688.74,1.63800165]
[1748482943695,0.29017047,689.25,688.75,1.63859142]
[1748482943892,0.29017047,689.25,688.76,1.63859142]
[1748482944196,0.29017047,689.25,688.77,1.63859378]
[1748482944396,0.29017047,689.25,688.56,0.46175313]
[1748482944993,0.29017047,689.25,688.57,1.63858564]
[1748482945298,0.29017047,689.25,688.56,0.46175313]
[1748482946001,0.29017047,689.25,688.57,1.06747263]
[1748482946201,0.29017047,689.25,688.58,1.64093832]
[1748482946402,0.29017047,689.25,688.59,1.64093832]
[1748482946599,0.29017047,689.25,688.6,0.57109993]
[1748482946798,0.29017047,689.25,688.61,1.64087055]
[1748482947101,0.29017047,689.25,688.62,1.6408749]
[1748482947299,0.29017047,689.25,688.63,1.64087562]
[1748482947497,0.29017047,689.25,688.64,1.64084841]
[1748482947701,0.29017047,689.25,688.65,1.64084841]
[1748482947896,0.29017047,689.25,688.66,1.64084841]
[1748482948099,0.29017047,689.25,688.67,1.64084841]
[1748482948300,0.29017047,689.25,688.68,1.64084841]
[1748482948496,0.29017047,689.25,688.69,1.64084841]
[1748482948698,0.29017047,689.25,688.7,1.6402198]
[1748482948901,0.29017047,689.25,688.71,1.64018862]
[1748482949103,0.29017047,689.25,688.41,0.46175313]
[1748482949297,0.29017047,689.25,688.42,1.06914558]
[1748482949607,0.29017047,689.25,688.43,1.64018874]
[1748482949902,0.29017047,689.25,688.44,1.64018904]
[1748482950099,0.29017047,689.25,688.45,0.57104689]
[1748482950295,0.29017047,689.25,688.4,0.46175313]
[1748482950701,0.29017047,689.25,688.41,1.06913064]
[1748482950902,0.29017047,689.25,688.4,0.46175313]
[1748482951106,0.29017047,689.25,688.41,1.06886088]
[1748482951404,0.29017047,689.25,688.42,1.63990169]
[1748482951599,0.29017047,689.25,688.43,1.63990227]
[1748482951804,0.29017047,689.25,688.44,1.63990227]
[1748482951999,0.29017047,689.25,688.45,1.63990227]
[1748482952205,0.29017047,689.25,688.46,1.63990817]
[1748482952405,0.29017047,689.25,688.47,1.63990817]
[1748482952599,0.29017047,689.25,688.48,1.63990817]
[1748482952801,0.29017047,689.25,688.49,1.63990817]
[1748482953006,0.29017047,689.25,688.5,1.63990817]
[1748482953302,0.29017047,689.25,688.51,1.63974674]
[1748482953506,0.29017047,689.25,688.52,1.63974674]
[1748482953707,0.29017047,689.25,688.53,1.63974674]
[1748482953906,0.29017047,689.25,688.4,0.46175313]
[1748482954100,0.29017047,689.25,688.41,1.63951071]
[1748482954303,0.29017047,689.25,688.42,1.63951071]
[1748482954602,0.29017047,689.25,688.43,1.63951071]
[1748482954804,0.29017047,689.25,688.44,1.63921823]
[1748482955005,0.29017047,689.25,688.45,1.63921823]
[1748482955210,0.29017047,689.25,688.46,1.63921874]
[1748482955405,0.29017047,689.25,688.47,1.63921784]
[1748482955609,0.29017047,689.25,688.48,1.63906564]
[1748482955908,0.29017047,689.25,688.49,1.63905105]
[1748482956108,0.29017047,689.25,688.5,1.63905105]
[1748482956304,0.29017047,689.25,688.51,1.63905105]
[1748482956511,0.29017047,689.25,688.52,1.63905105]
[1748482956703,0.29017047,689.25,688.53,1.63905105]
[1748482956906,0.29017047,689.25,688.54,1.63905105]
[1748482957112,0.29017047,689.25,688.55,1.63905105]
[1748482957408,0.29017047,689.25,688.56,1.63891218]
[1748482957706,0.29017047,689.25,688.57,0.57071482]
[1748482957907,0.29017047,689.25,688.4,0.46175313]
[1748482958110,0.29017047,689.25,688.41,1.63875454]
[1748482958310,0.29017047,689.25,688.42,1.63875454]
[1748482958506,0.29017047,689.25,688.43,1.63875454]
[1748482958811,0.29017047,689.25,688.44,1.63846315]
[1748482959012,0.29017047,689.25,688.45,1.63846315]
[1748482959312,0.29017047,689.25,688.46,1.63833372]
[1748482959507,0.29017047,689.25,688.47,1.63833372]
[1748482959710,0.29017047,689.25,688.4,0.46175313]
[1748482959913,0.29017047,689.25,688.41,1.63748256]
[1748482960113,0.29017047,689.25,688.42,1.63748256]
[1748482960313,0.29017047,689.25,686.9,0.55498982]
[1748482960314,0.29017047,689.25,688.43,1.63748256]
[1748482960609,0.29017047,689.25,688.44,1.63724456]
[1748482960817,0.29017047,689.25,688.45,1.63679588]
[1748482961018,0.29017047,689.25,688.46,1.63679588]
[1748482961221,0.29017047,689.25,688.47,1.63592265]
[1748482961515,0.29017047,689.25,688.17,0.46175313]
[1748482961715,0.29017047,689.25,688.18,1.63536058]
[1748482962014,0.29017047,689.25,688.19,1.63536058]
[1748482962216,0.29017047,689.25,688.2,1.06551429]
[1748482962419,0.29017047,689.25,688.21,1.63535578]
[1748482962615,0.29017047,689.25,688.22,1.63518895]
[1748482962918,0.29017047,689.25,688.23,1.6345487]
[1748482963118,0.29017047,689.25,688.24,1.6345487]
[1748482963320,0.29017047,689.25,688.25,1.6345487]
[1748482963520,0.29017047,689.25,688.26,1.63415307]
[1748482963721,0.29017047,689.25,688.27,1.63415272]
[1748482963917,0.29017047,689.25,688.28,1.6341537]
[1748482964221,0.29017047,689.25,688.29,1.6338897]
[1748482964420,0.29017047,689.25,688.3,1.63366866]
[1748482964623,0.29017047,689.25,688.31,0.56942395]
[1748482964815,0.29017047,689.25,688.32,0.56942052]
[1748482965018,0.29017047,689.25,688.33,1.63354387]
[1748482965321,0.29017047,689.25,688.34,1.63354387]
[1748482965517,0.29017047,689.25,688.35,1.63354387]
[1748482965718,0.29017047,689.25,688.36,1.63354387]
[1748482965921,0.29017047,689.25,688.37,1.63354387]
[1748482966121,0.29017047,689.25,688.17,0.46175313]
[1748482966316,0.29017047,689.25,688.18,1.63460795]
[1748482966515,0.29017047,689.25,688.19,1.63430961]
[1748482966719,0.29017047,689.25,688.2,1.63430961]
[1748482967017,0.29017047,689.25,688.21,1.63430961]
[1748482967318,0.29017047,689.25,688.22,0.56931414]
[1748482967521,0.29017047,689.25,688.17,0.46175313]
[1748482967722,0.29017047,689.25,688.18,1.63406659]
[1748482967919,0.29017047,689.25,688.19,1.63406659]
[1748482968119,0.29017047,689.25,688.2,1.63406604]
[1748482968321,0.29017047,689.25,688.21,1.63406604]
[1748482968518,0.29017047,689.25,688.22,1.63406488]
[1748482968719,0.29017047,689.25,688.23,1.06484183]
[1748482968919,0.29017047,689.25,688.24,1.63406372]
[1748482969124,0.29017047,689.25,688.25,1.63447927]
[1748482969424,0.29017047,689.25,688.26,1.63435184]
[1748482969624,0.29017047,689.25,688.27,1.6341125]
[1748482969824,0.29017047,689.25,688.28,1.6341125]
[1748482970124,0.29017047,689.25,688.29,1.6341175]
[1748482970324,0.29017047,689.25,688.3,1.6341175]
[1748482970521,0.29017047,689.25,688.31,1.6340096]
[1748482970721,0.29017047,689.25,688.32,1.6340096]
[1748482970924,0.29017047,689.25,688.33,1.63423863]
[1748482971224,0.29017047,689.25,688.34,1.63423863]
[1748482971424,0.29017047,689.25,688.35,1.63424015]
[1748482971622,0.29017047,689.25,688.36,1.63424015]
[1748482971827,0.29017047,689.25,688.37,1.63424015]
[1748482972031,0.29017047,689.25,688.38,1.63424015]
[1748482972227,0.29017047,689.25,688.39,1.63424015]
[1748482972427,0.29017047,689.25,688.4,1.63424015]
[1748482972726,0.29017047,689.25,688.41,1.63345482]
[1748482972928,0.29017047,689.25,688.42,1.63345482]
[1748482973227,0.29017047,689.25,688.43,1.06466232]
[1748482973423,0.29017047,689.25,688.09,0.46175313]
[1748482973628,0.29017047,689.25,688.1,1.92407287]
[1748482973828,0.29017047,689.25,688.11,1.92406865]
[1748482974028,0.29017047,689.25,688.12,1.92406443]
[1748482974225,0.29017047,689.25,688.13,1.92362944]
[1748482974430,0.29017047,689.25,688.14,1.92362522]
[1748482974625,0.29017047,689.25,688.15,1.63298669]
[1748482974826,0.29017047,689.25,688.16,1.63298669]
[1748482975026,0.29017047,689.25,688.14,0.29063853]
[1748482975230,0.29017047,689.25,688.15,1.6327929]
[1748482975430,0.29017047,689.25,688.16,1.06411455]
[1748482975631,0.29017047,689.25,688.14,0.29063853]
[1748482975826,0.29017047,689.25,688.15,1.63280958]
[1748482976127,0.29017047,689.25,688.16,1.63280958]
[1748482976427,0.29017047,689.25,688.17,1.63280958]
[1748482976631,0.29017047,689.25,688.18,1.63280729]
[1748482976826,0.29017047,689.25,688.19,1.63280729]
[1748482977031,0.29017047,689.25,688.2,1.63280729]
[1748482977231,0.29017047,689.25,688.21,1.63280729]
[1748482977428,0.29017047,689.25,688.22,1.63280729]
[1748482977632,0.29017047,689.25,688.23,1.63327482]
[1748482977934,0.29017047,689.25,688.24,1.63327482]
[1748482978134,0.29017047,689.25,688.25,1.06459269]
[1748482978328,0.29017047,689.25,688.26,1.63323641]
[1748482978527,0.29017047,689.25,688.14,0.29063853]
[1748482978528,0.29017047,689.25,688.27,1.63325435]
[1748482978731,0.29017047,689.25,688.28,1.63325435]
[1748482978930,0.29017047,689.25,688.29,1.63325435]
[1748482979132,0.29017047,689.25,688.3,1.63320795]
[1748482979330,0.29017047,689.25,688.31,1.63320795]
[1748482979531,0.29017047,689.25,688.32,1.63304771]
[1748482979734,0.29017047,689.25,688.33,1.06444829]
[1748482979934,0.29017047,689.25,688.34,1.63304831]
[1748482980133,0.29017047,689.25,688.35,1.63304831]
[1748482980335,0.29017047,689.25,688.36,1.63304831]
[1748482980632,0.29017047,689.25,688.37,1.06444829]
[1748482980930,0.29017047,689.25,688.38,1.63303926]
[1748482981129,0.29017047,689.25,688.39,1.63274113]
[1748482981333,0.29017047,689.25,688.4,1.63274527]
[1748482981533,0.29017047,689.25,688.41,1.63274527]
[1748482981734,0.29017047,689.25,688.42,1.63274527]
[1748482981935,0.29017047,689.25,688.43,1.63274527]
[1748482982235,0.29017047,689.25,688.44,0.56857621]
[1748482982436,0.29017047,689.25,688.45,1.63259745]
[1748482982635,0.29017047,689.25,688.46,1.63354335]
[1748482982836,0.29017047,689.25,688.47,1.63354335]
[1748482983033,0.29017047,689.25,688.48,1.63354283]
[1748482983233,0.29017047,689.25,688.49,1.63354283]
[1748482983432,0.29017047,689.25,688.5,0.56841125]
[1748482983633,0.29017047,689.25,688.51,1.63339863]
[1748482983833,0.29017047,689.25,688.52,1.63339863]
[1748482984033,0.29017047,689.25,688.53,1.63339863]
[1748482984235,0.29017047,689.25,688.54,1.63339863]
[1748482984538,0.29017047,689.25,688.55,1.63251011]
[1748482984735,0.29017047,689.25,688.56,1.63246355]
[1748482984934,0.29017047,689.25,688.57,1.63246273]
[1748482985137,0.29017047,689.25,688.58,1.63246273]
[1748482985338,0.29017047,689.25,688.59,1.63242015]
[1748482985534,0.29017047,689.25,688.6,0.56832218]
[1748482985738,0.29017047,689.25,688.61,1.63234049]
[1748482985938,0.29017047,689.25,688.62,1.63234049]
[1748482986136,0.29017047,689.25,688.63,1.63234049]
[1748482986441,0.29017047,689.25,688.64,1.63203936]
[1748482986642,0.29017047,689.25,688.65,1.63200061]
[1748482986837,0.29017047,689.25,688.66,1.63198281]
[1748482987037,0.29017047,689.25,688.67,1.63198281]
[1748482987237,0.29017047,689.25,688.68,1.6319678]
[1748482987438,0.29017047,689.25,688.69,1.6319678]
[1748482987641,0.29017047,689.25,688.7,1.6319678]
[1748482987838,0.29017047,689.25,688.71,1.6319678]
[1748482988038,0.29017047,689.25,688.72,1.06370653]
[1748482988242,0.29017047,689.25,688.73,1.63193602]
[1748482988543,0.29017047,689.25,688.74,1.63180765]
[1748482988740,0.29017047,689.25,688.75,1.63180765]
[1748482988941,0.29017047,689.25,688.76,1.63180765]
[1748482989241,0.29017047,689.25,688.77,1.63180868]
[1748482989442,0.29017047,689.25,688.78,1.63180868]
[1748482989643,0.29017047,689.25,688.79,1.63180001]
[1748482989843,0.29017047,689.25,688.8,1.63180001]
[1748482990042,0.29017047,689.25,688.81,1.63180001]
[1748482990243,0.29017047,689.25,688.82,1.63180001]
[1748482990439,0.29017047,689.25,688.83,1.63180001]
[1748482990643,0.29017047,689.25,688.84,1.63180001]
[1748482990844,0.29017047,689.25,688.85,1.63180001]
[1748482991144,0.29017047,689.25,688.86,1.63184222]
[1748482991444,0.29017047,689.25,688.87,1.63184222]
[1748482991640,0.29017047,689.25,688.88,1.63184222]
[1748482991941,0.29017047,689.25,688.89,1.63184222]
[1748482992143,0.29017047,689.25,688.9,1.63184222]
[1748482992345,0.29017047,689.25,688.91,1.63184222]
[1748482992641,0.29017047,689.25,688.92,0.5682629]
[1748482992845,0.29017047,689.25,688.93,1.63230269]
[1748482993045,0.29017047,689.25,688.14,0.29063853]
[1748482993046,0.29017047,689.25,688.94,1.63230269]
[1748482993246,0.29017047,689.25,688.95,1.63230269]
[1748482993546,0.29017047,689.25,688.96,1.63230269]
[1748482993746,0.29017047,689.25,688.97,1.63230269]
[1748482993943,0.29017047,689.25,688.98,1.63229507]